Cogmind - Beta 15 @@@ ROGUE MODE // 2025.07.30 @ 00:46:56 Player: surprisinglarge Result: Destroyed by G-67 Veteran with Plasma Rifle Performance ------------- Evolutions (4) 2000 Regions Visited (5) 1000 Robots Destroyed (24) 120 Value Destroyed (803) 803 Prototype IDs (0) 0 Alien Tech Used (0) 0 Bonus (0) 0 TOTAL SCORE: 3923 Bonus ------- None Cogmind --------- Core Integrity 0/850 Matter 300/300 Energy 100/100 System Corruption 0% Temperature Warm (127) Movement Core (50) Location -6/Factory Parts ------- > --- POWER (2) -------- (None) > --- PROPULSION (4) --- (None) > --- UTILITY (5) ------ (None) > --- WEAPON (4) ------- (None) > --- INVENTORY (5) ---- (None) Peak State ------------ > --- POWER ------------ Light Angular Momentum Engine > --- PROPULSION ------- Carbon-fiber Leg Myomer Leg > --- UTILITY ---------- Small Storage Unit Improved Reaction Control System Phase Shifter Makeshift Light Armor Plating > --- WEAPON ----------- Subdweller Laser Phase Cannon Battle Rifle Battle Rifle > --- INVENTORY -------- (None) [Rating: 41] Favorites ----------- Power Light Angular Momentum Engine Engine Light Angular Momentum Engine Power Core Fission Core Propulsion Myomer Leg Leg Myomer Leg Utility Small Storage Unit Device Phase Shifter Storage Small Storage Unit Protection Makeshift Light Armor Plating Weapon Battle Rifle Energy Gun Riot Gun Energy Cannon Phase Cannon Ballistic Gun Battle Rifle Ballistic Cannon Magnetic Acceleration Cannon Build | -11 -10 -10 -9 -9 -6 ------- Run | Yrd Mat Sub Rec Scr Fac Slots Evolved 8 | . . . . . 8 Power 1 | . . . . . 1 Propulsion 2 | . . . . . 2 Utility 3 | . . . . . 3 Weapon 2 | . . . . . 2 Parts Attached 28 | 6 3 8 . . 11 Power 5 | 1 1 1 . . 2 Engine 4 | 1 1 1 . . 1 Core 1 | . . . . . 1 Reactor . | . . . . . . Propulsion 5 | 2 1 2 . . . Treads . | . . . . . . Leg 5 | 2 1 2 . . . Wheel . | . . . . . . Hover . | . . . . . . Flight . | . . . . . . Utility 7 | 1 1 1 . . 4 Device 3 | . . . . . 3 Storage 1 | 1 . . . . . Processor . | . . . . . . Hackware . | . . . . . . Protection 3 | . 1 1 . . 1 Artifact . | . . . . . . Weapon 11 | 2 . 4 . . 5 Energy Gun 4 | 1 . 3 . . . Energy Cannon 2 | . . . . . 2 Ballistic Gun 4 | 1 . 1 . . 2 Ballistic Cannon 1 | . . . . . 1 Launcher . | . . . . . . Special Weapon . | . . . . . . Impact Weapon . | . . . . . . Slashing Weapon . | . . . . . . Piercing Weapon . | . . . . . . Special Melee Weapon . | . . . . . . Unidentified Prototypes . | . . . . . . Parts Lost 22 | . 1 3 . . 18 Power 5 | . 1 1 . . 3 Propulsion 2 | . . . . . 2 Utility 6 | . . . . . 6 Weapon 9 | . . 2 . . 7 Highest Loss Streak 9 | . 1 2 . . 9 To Critical Strikes 1 | . . 1 . . . Average Backups 2 | 1 . 2 4 4 . Power . | . . . . . . Propulsion . | . . . . . . Utility 1 | . . 1 2 2 . Weapon . | . . . 2 2 . Tool/Special . | . . . . . . Unused Backups . | . . . . . . Power . | . . . . . . Propulsion . | . . . . . . Utility . | . . . . . . Weapon . | . . . . . . Tool/Special . | . . . . . . Average Slot Usage (%) 90 | . 88 99 100 100 59 Engine 11 | . 13 13 14 14 2 Leg 24 | . 28 28 28 28 9 Device 1 | . . . . . 7 Storage 12 | . 14 14 14 14 5 Protection 12 | . 4 14 14 14 8 Energy Gun 12 | . 14 13 14 14 6 Ballistic Gun 13 | . 14 14 14 14 11 Peak Build Rating 41 | 6 8 26 26 26 41 Average Rating 23 | 4 6 22 26 26 32 On Entrance 15 | . 6 8 26 26 26 Naked Turns 21 | . . . . . 21 Heaviest Build 48 | 11 16 25 23 23 48 Greatest Support 40 | 20 20 40 40 40 40 Greatest Overweight (x) 6 | . . . . . 6 Average Overweight (x) . | . . . . . . Largest Inventory Capacity 8 | 8 8 8 8 8 8 Average Capacity 7 | 7 8 8 8 8 7 Most Carried 6 | 5 1 6 5 5 4 Average Carried 2 | 1 . 3 5 5 . Final Capacity 8 | 8 8 8 8 8 5 Final Carried 5 | . . 5 5 5 . Class Distribution -------------------- 83% | Mutant 9% | Scavenger-Tank 6% | Tank Dominant Class ---------------- Mutant | -10/Materials Mutant | -10/Subcaves Mutant | -9/Recycling Mutant | -9/Scraptown Scavenger-Tank | -6/Factory Resources | -11 -10 -10 -9 -9 -6 ----------- Run | Yrd Mat Sub Rec Scr Fac Matter Collected 747 | 260 78 223 9 . 177 Remotely . | . . . . . . Salvage Created 780 | . 109 284 . . 387 Parts 38 | . 10 14 . . 14 Haulers Intercepted . | . . . . . . Recyclers Shooed . | . . . . . . Parts Field Recycled . | . . . . . . Retrieved Matter . | . . . . . . Parts Self-Destructed 23 | . . 23 . . . Prevented 1 | . . 1 . . . Kills | -11 -10 -10 -9 -9 -6 ------- Run | Yrd Mat Sub Rec Scr Fac Combat Hostiles Destroyed 22 | . 6 7 . . 9 Guns 16 | . 6 7 . . 3 Cannons 4 | . . . . . 4 AOE 2 | . . . . . 2 Classes Destroyed 6 | . 2 2 . . 2 Turret 2 | . . 2 . . . Swarmer 11 | . 5 3 . . 3 Grunt 3 | . 1 . . . 2 Sentry 3 | . . . . . 3 Hunter 1 | . . . . . 1 Subdweller 4 | . . 4 . . . Best Kill Streak 5 | . 3 5 . . 3 Combat Bots Only 3 | . 3 3 . . 3 Max Kills in Single Turn 2 | . 2 2 . . 2 Gunslinging 1 | . 1 1 . . . Exploded 2 | . . . . . 2 Melee . | . . . . . . Uniques/NPCs Destroyed . | . . . . . . Combat | -11 -10 -10 -9 -9 -6 -------- Run | Yrd Mat Sub Rec Scr Fac Hostile Shots Fired 357 | . 54 77 . . 226 Missed 127 | . 14 33 . . 80 Hits 230 | . 40 44 . . 146 Projectile 230 | . 40 44 . . 146 Critical Strikes 9 | . . 4 . . 5 Damage Taken 3520 | . 317 698 . . 2505 Core 1018 | . 31 136 . . 851 Absorbed by Shields . | . . . . . . Core Remaining (%) 66 | 100 . . . 33 . Volleys Fired 99 | . 21 49 . . 29 Largest 4 | . 2 2 . . 4 Hottest 195 | . 60 80 . . 195 Shots Fired 197 | . 42 80 . . 75 Gun 172 | . 42 80 . . 50 Cannon 25 | . . . . . 25 Launcher . | . . . . . . Special . | . . . . . . Kinetic 112 | . 21 49 . . 42 Thermal 71 | . 21 23 . . 27 Explosive . | . . . . . . Electromagnetic 14 | . . 8 . . 6 Robot Hit Streak 9 | . 7 9 . . 9 Robot Miss Streak 5 | . 4 4 . . 5 Penetration Max . | . . . . . . Secondary Targets 3 | . 1 2 . . . Max Gunslinging Chain 1 | . 1 1 . . . Shots Hit Robots 126 | . 22 60 . . 44 Core Hits 50 | . 8 20 . . 22 Critical Kills 1 | . . 1 . . . Critical Parts Destroyed 1 | . . 1 . . . Critical Strikes 3 | . . 3 . . . Destroy 3 | . . 3 . . . Melee Attacks . | . . . . . . Impact . | . . . . . . Slashing . | . . . . . . Piercing . | . . . . . . Sneak Attacks . | . . . . . . Combat Hostiles . | . . . . . . Follow-up Attacks . | . . . . . . Damage Inflicted 2368 | . 290 849 . . 1229 Guns 1588 | . 290 849 . . 449 Cannons 513 | . . . . . 513 Explosions 266 | . . . . . 266 Melee . | . . . . . . Ramming 1 | . . . . . 1 Kinetic 1019 | . 147 550 . . 322 Thermal 1087 | . 143 195 . . 749 Explosive 84 | . . . . . 84 Electromagnetic 177 | . . 104 . . 73 Impact . | . . . . . . Slashing . | . . . . . . Piercing . | . . . . . . Highest Corruption . | . . . . . . Average Corruption . | . . . . . . Corruption Purged . | . . . . . . Corruption Blocked . | . . . . . . Overload Shots . | . . . . . . Overflow Damage . | . . . . . . Projectiles . | . . . . . . Explosions . | . . . . . . Melee . | . . . . . . Knockbacks 1 | . . . . . 1 Impact . | . . . . . . Kinetic 1 | . . . . . 1 Secondary . | . . . . . . Self-Inflicted Damage 257 | . . . . . 257 Shots 5 | . . . . . 5 Rammed 1 | . . . . . 1 Targets Rammed 1 | . . . . . 1 Kicked . | . . . . . . Crushed . | . . . . . . Highest Temperature 368 | . 63 20 . . 368 Average Temperature 141 | . 36 8 . . 171 Received Heat Transfer 1045 | . 18 234 . . 793 Effects 3 | . . . . . 3 Energy Bleed 1 | . . . . . 1 Short Circuit 1 | . . . . . 1 Damage (minor) 1 | . . . . . 1 Siege Activations . | . . . . . . Martial Activations . | . . . . . . Shielding Activations . | . . . . . . Robots Disrupted . | . . . . . . Combat Hostiles . | . . . . . . Robots Corrupted . | . . . . . . Combat Hostiles . | . . . . . . Parts Fried . | . . . . . . Impact Corruptions . | . . . . . . Robots Melted . | . . . . . . Combat Hostiles . | . . . . . . Parts Melted 5 | . 2 2 . . 1 Heat Transferred 1493 | . 325 375 . . 793 Parts Sabotaged . | . . . . . . Parts Stolen . | . . . . . . Parts Stripped . | . . . . . . Power Chain Reactions 1 | . . . . . 1 Alert | -11 -10 -10 -9 -9 -6 ------- Run | Yrd Mat Sub Rec Scr Fac Maximum Alert Level . | . . . . . . Low Security (%) 100 | 100 100 . 100 . 100 Level 1 . | . . . . . . Level 2 . | . . . . . . Level 3 . | . . . . . . Level 4 . | . . . . . . Level 5 . | . . . . . . High Security . | . . . . . . Max Security . | . . . . . . Peak Influence 140 | . 70 . 123 . 140 Initial 123 | . . . 123 . . Average 41 | . 24 . 96 . 41 Influence Increases 830 | . 140 265 . . 425 Destroy 0b10 Robot/C 400 | . 120 100 . . 180 Destroy Leader 80 | . 20 . . . 60 Disable Machine 90 | . . . . . 90 Destroy Structure 35 | . . . . . 35 Lose Combat Pursuer 225 | . . 165 . . 60 Influence Decreases 770 | . 120 28 194 63 365 Entered New Map 207 | . . 10 134 63 . Time Decay 373 | . 110 18 60 . 185 Lost Part 190 | . 10 . . . 180 Squads Dispatched 4 | . 1 . . . 3 Investigation . | . . . . . . Extermination 1 | . . . . . 1 Reinforcement 3 | . 1 . . . 2 Assault . | . . . . . . Garrison . | . . . . . . Intercept . | . . . . . . Searches Triggered . | . . . . . . Construction Impeded 1 | . . . . . 1 Haulers Reinforced . | . . . . . . Active Scanning Responses . | . . . . . . Cargo Convoy Interrupts . | . . . . . . Stealth | -11 -10 -10 -9 -9 -6 --------- Run | Yrd Mat Sub Rec Scr Fac Distress Signals 1 | . 1 . . . . Communications Jammed . | . . . . . . Distress Signals . | . . . . . . Times Spotted 52 | . 9 27 . . 16 Peak Tracking Total 8 | . 4 7 . . 8 Tactical Retreats 5 | . . 3 . . 2 Traps | -11 -10 -10 -9 -9 -6 ------- Run | Yrd Mat Sub Rec Scr Fac Traps Triggered 1 | . . 1 . . . Indirectly . | . . . . . . Trap Hack Attempts . | . . . . . . Triggered . | . . . . . . Disarmed . | . . . . . . Reprogrammed . | . . . . . . Reused . | . . . . . . Traps Extracted . | . . . . . . Installed . | . . . . . . Triggered . | . . . . . . Machines | -11 -10 -10 -9 -9 -6 ---------- Run | Yrd Mat Sub Rec Scr Fac Machines Disabled 7 | . . 1 . . 6 Max in Single Turn 4 | . . 1 . . 4 Machines Repaired . | . . . . . . Machines Dismantled . | . . . . . . Machines Sabotaged . | . . . . . . Overloaded Fab Kills . | . . . . . . Hacking | -11 -10 -10 -9 -9 -6 --------- Run | Yrd Mat Sub Rec Scr Fac Machines Accessed 2 | . . 1 1 . . Terminals . | . . . . . . Fabricators . | . . . . . . Repair Stations . | . . . . . . Recycling Units . | . . . . . . Scanalyzers . | . . . . . . Garrison Access . | . . . . . . Total Hacks 7 | . . 4 3 . . Successful 7 | . . 4 3 . . Failed . | . . . . . . Catastrophic . | . . . . . . Database Lockouts . | . . . . . . Manual 2 | . . 2 . . . Terminals . | . . . . . . Fabricators . | . . . . . . Repair Stations . | . . . . . . Recycling Units . | . . . . . . Scanalyzers . | . . . . . . Garrison Access . | . . . . . . Terminal Hacks 7 | . . 4 3 . . Record 7 | . . 4 3 . . Fabricator Hacks . | . . . . . . Repair Station Hacks . | . . . . . . Recycling Unit Hacks . | . . . . . . Scanalyzer . | . . . . . . Garrison Access Hacks . | . . . . . . Unauthorized Hacks . | . . . . . . Terminals . | . . . . . . Fabricators . | . . . . . . Repair Stations . | . . . . . . Recycling Units . | . . . . . . Scanalyzers . | . . . . . . Garrison Access . | . . . . . . Data Cores Recovered . | . . . . . . Used . | . . . . . . Hacking Detections . | . . . . . . Full Trace Events . | . . . . . . Feedback Events . | . . . . . . Feedback Blocked . | . . . . . . Robot Schematics Acquired . | . . . . . . Robots Built . | . . . . . . Authchips . | . . . . . . Time . | . . . . . . Total Robot Build Rating . | . . . . . . Part Schematics Acquired . | . . . . . . Parts Built . | . . . . . . Authchips . | . . . . . . Time . | . . . . . . Total Part Build Rating . | . . . . . . Parts Repaired . | . . . . . . Time . | . . . . . . Parts Recycled . | . . . . . . Recycled Matter . | . . . . . . Retrieved Matter . | . . . . . . Retrieved Components . | . . . . . . Parts Scanalyzed . | . . . . . . Part Schematics Acquired . | . . . . . . Parts Damaged . | . . . . . . Bothacking | -11 -10 -10 -9 -9 -6 ------------ Run | Yrd Mat Sub Rec Scr Fac Used RIF Installer . | . . . . . . Robots Hacked . | . . . . . . Non-combat . | . . . . . . Combat . | . . . . . . Robot Hacks Applied . | . . . . . . Relay Couplers Released . | . . . . . . Fabnet Peak Effective % . | . . . . . . Robots Rewired . | . . . . . . Allies Hacked . | . . . . . . Hacks Repelled . | . . . . . . Allies | -11 -10 -10 -9 -9 -6 -------- Run | Yrd Mat Sub Rec Scr Fac Total Allies . | . . . . . . Largest Group . | . . . . . . Highest-Rated Group . | . . . . . . Highest-Rated Ally . | . . . . . . Total Orders . | . . . . . . Ally Attacks . | . . . . . . Total Damage . | . . . . . . Kills . | . . . . . . Allies Corrupted . | . . . . . . Allies Melted . | . . . . . . Intel | -11 -10 -10 -9 -9 -6 ------- Run | Yrd Mat Sub Rec Scr Fac Active Infowar (turns) . | . . . . . . Robot Analysis Total . | . . . . . . Derelict Logs Recovered 1 | . . 1 . . . Drone Launches . | . . . . . . Drone Recoveries . | . . . . . . Exploration | -11 -10 -10 -9 -9 -6 ------------- Run | Yrd Mat Sub Rec Scr Fac Turns Passed 3428 | 47 303 1593 123 717 645 Spaces Moved 2418 | 38 195 1179 103 598 305 Core 43 | 13 . . . . 30 Treads . | . . . . . . Legs 2375 | 25 195 1179 103 598 275 Wheels . | . . . . . . Hover . | . . . . . . Flight . | . . . . . . Fastest Speed 50 | 50 120 120 120 120 50 Average Speed 125 | 96 120 120 120 120 166 Slowest Speed 350 | 120 120 120 120 120 350 Overloaded Moves . | . . . . . . Propulsion Burnouts . | . . . . . . Robots Hopped . | . . . . . . Potential Cave-ins . | . . . . . . Cave-ins Triggered . | . . . . . . Exploration Rate (%) 29 | 3 35 56 19 52 10 Regions Visited 5 Branch Regions 3 Pre-discovered Areas 3 | . . 3 . . . Known Exits Taken . | . . . . . . Unknown Exits Taken 5 | 1 1 1 1 1 . Scrap Searched 4 | . . 4 . . . Spaces Dug . | . . . . . . Terrain Destroyed 49 | . . . . . 49 Melee . | . . . . . . Projectile 4 | . . . . . 4 AOE 45 | . . . . . 45 Terrain Rammed . | . . . . . . Walls Destroyed . | . . . . . . Machines Disabled . | . . . . . . Actions | -11 -10 -10 -9 -9 -6 --------- Run | Yrd Mat Sub Rec Scr Fac Total 2638 | 48 222 1279 102 597 390 Wait 60 | . . 26 . . 34 Move 2413 | 37 194 1178 102 597 305 Hop . | . . . . . . Pick Up 28 | 5 3 12 . . 8 Fast Attach 1 | 1 . . . . . Attach 24 | 5 3 4 . . 12 Detach . | . . . . . . Swap 5 | . . 5 . . . Drop 7 | . 1 5 . . 1 Fire 99 | . 21 49 . . 29 Melee . | . . . . . . Ram 1 | . . . . . 1 Kick . | . . . . . . Crush . | . . . . . . Escape Stasis . | . . . . . . Rewire . | . . . . . . Trap . | . . . . . . Miscellaneous . | . . . . . . Route ------- -11/Scrapyard -10/Materials -10/Subcaves -9/Recycling -9/Scraptown -6/Factory History --------- Turn | Location | Event 11 | -11/Scrapyard | Discovered new exit (range 15) 48 | -11/Scrapyard | Entered Materials 311 | -10/Materials | Build established: Mutant 344 | -10/Materials | Discovered new exit (range 7) 351 | -10/Materials | Entered Subcaves 435 | -10/Subcaves | Ambushed by swarm of Subdwellers 494 | -10/Subcaves | Lost 4 allies 535 | -10/Subcaves | Shifting Twisted Machinery released Scrap Shield 626 | -10/Subcaves | Shifting Twisted Machinery released Battle Rifle 691 | -10/Subcaves | Learned Materials emergency access door positions 913 | -10/Subcaves | Disturbed a concealed Subdweller 944 | -10/Subcaves | Core integrity fell below 50% 1099 | -10/Subcaves | Visited Clippyterm 1102 | -10/Subcaves | Learned location of Deep Caves (-6) 1102 | -10/Subcaves | Learned location of Section 7 (-2) 1184 | -10/Subcaves | Learned location of Zion (-6) 1184 | -10/Subcaves | Met a Zionite searching for "candidates" 1200 | -10/Subcaves | Shifting Twisted Machinery released Mak. Hacking Suite 1904 | -10/Subcaves | Discovered new exit (range 14) 1944 | -10/Subcaves | Entered Recycling 1945 | -9/Recycling | Met a Zionite searching for Scraptown 2030 | -9/Recycling | Scanned before Scraplab entrance 2048 | -9/Recycling | Entered Scraplab 2064 | -9/Recycling | Discovered new exit (range 3) 2067 | -9/Recycling | Entered Scraptown 2193 | -9/Scraptown | Heard Great Nut preacher, LISTEN AND RECITE! 2226 | -9/Scraptown | Visited Shadow of the Wyrm 2261 | -9/Scraptown | Visited Assassins FH 2297 | -9/Scraptown | Visited Observation Area 2586 | -9/Scraptown | Visited UFD Registry 2613 | -9/Scraptown | Visited Awakened 2781 | -9/Scraptown | Discovered new exit (range 3) 2784 | -9/Scraptown | Entered Factory 2784 | -6/Factory | Evolved 8 slots: Power x1, Propulsion x2, Utility x3, Weapon x2 3090 | -6/Factory | Build established: Scavenger-Tank 3156 | -6/Factory | Lost 5 parts (1p1n1u2w) 3380 | -6/Factory | Core integrity fell below 50% 3404 | -6/Factory | Lost 9 parts (1n4u4w) 3421 | -6/Factory | Core integrity fell below 20% 3429 | -6/Factory | Destroyed by G-67 Veteran with Plasma Rifle Last Messages --------------- The unstable cave ceiling collapses. Myomer Leg destroyed. R-10 Processor collects Imp. Light Armor Plating. Magnetic Acceleration Cannon destroyed. R-10 Processor collects Imp. Deuterium Engine. R-10 Processor collects Imp. Heat Sink. The unstable cave ceiling collapses. ALERT: Potential suspicious activity detected, Programmers report to Factory Zone 8S. Acquired Fission Core. G-50 Soldier destroyed. Critical hit (Burn: +50). Phase Cannon destroyed. Acquired Lgt. Angular Momentum Engine. Acquired 51 matter. Slammed into G-67 Veteran. Lgt. Angular Momentum Engine destroyed. Acquired 36 matter. Fission Core destroyed. Map ----- +----------------------------------------------------+ | ??????????????????????????????# ##???????????? | | ??????????????????????????????# T#???????????? | | ?????????????????############## #???????????? | | ?????????????????# # #????????????? | | ?????????????????# # #????????????? | | ???????????????### # ###########??? | | ???????????????? + # ?? | | ?????????????????# !!! % # ^ ?? | | ?????????????????# ! / ? | | ?????????????????# ! %# ? | | ????????????????## # ? | | ????????????????## ####+############?## | | ????????????????# % # #????# | | ???????????????## # """#????# | | ???????????????#" % # """" T"#????# | | ????????????????# # ## """" """###### | | ????????????? !# # ## """" + + | | ??????????????????## ###! """" ###### | | ???????????????????##### ####?# """" #????# | | ???????????????????????# #????# """" #????# | | ???????????????????????# #????# """" #????# | | ???????????????????????# #????# ? #????# | | ???????????????????????# #?????? #????# | | ???????????????????????# #?????? #????# | | ??????????????????????##g###################????## | | ??????????????????##### =@ #????????????????? | | ??????????????# ; g #????????????????? | | ??????????????# # g #????????????????? | | ???????????? ??# """ """ #????????????????? | | ??????????? ????+ """ """ #????????????????? | | ???????????? ??????# """ """ #????????????????? | | ????????????+#????????# #????????????????? | | ??????????????????????# #????????????????? | | ??????????????????????###########????????????????? | | ?????????????????????????????????????????????????? | | ?????????????????????????????????????????????????? | | ?????????????????????????????????????????????????? | | ?????????????????????????????????????????????????? | | ?????????????????????????????????????????????????? | | ?????????????????????????????????????????????????? | | | | | | | | | | | | | | | | | | | | | +----------------------------------------------------+ Best States ------------- Heat Dissipation 37 Energy Generation 18 Energy Capacity 310 Matter Stores 300 Matter Capacity 300 Sight Range 16 Terrain Scan Density 10 Armor Coverage 900 Phase Shifting 5 Evasion (%) 65 Item Schematics ----------------- None Robot Schematics ------------------ None Fabricated ------------ Nothing Repaired ---------- Nothing Alien Tech Used ----------------- None Achievements -------------- None Challenges ------------ None Game ------ Seed BottomlessCompactMask Manual? 0 Play Time 00:37:28 Cumulative 8.8 hours Start 2025.07.30 @ 00:06:46 End 2025.07.30 @ 00:46:56 Sessions 1 Manual Loads 0 Difficulty Rogue Special Mode None Game No. 24 Rogue 23 Adventurer 0 Explorer 1 Win Type - Total 0 Types 0/0/0/0/0/0/0/0/0/0 Lore% 7 Gallery% 13 Achievement% 13 Wizard Run 0 Options --------- Layout 1 ASCII 0 Keyboard 0 Movement Mouse Keybinds 0 Fullscreen 1 Font 24/Smallcaps Map View 50x35 Zoom Use 0% Tactical HUD 0 Map Filters NONE Filters NONE Steam 1 RUN: e29ea5ce-2095-4d4e-b0e6-b28df3f177de